[Event "*** Titled Tuesday Blitz"]
[Site "Chess.com"]
[Date "2020.05.26"]
[Round "6"]
[White "Saxar85"]
[Black "Zakaryan_David"]
[Result "0-1"]
[WhiteElo "2699"]
[BlackElo "2519"]
[TimeControl "180+1"]
[EndTime "11:09:56 PDT"]
[Termination "Zakaryan_David won on time"]

1. Nf3 {[%clk 0:03:00.9]} 1... Nf6 {[%clk 0:02:51.8]} 2. g3 {[%clk 0:03:00.1]}
2... g6 {[%clk 0:02:52.1]} 3. b3 {[%clk 0:02:58.4]} 3... Bg7 {[%clk 0:02:53]} 4.
Bb2 {[%clk 0:02:58]} 4... O-O {[%clk 0:02:53.9]} 5. Bg2 {[%clk 0:02:57.8]} 5...
c5 {[%clk 0:02:54.2]} 6. c4 {[%clk 0:02:55.1]} 6... Nc6 {[%clk 0:02:53.4]} 7.
O-O {[%clk 0:02:54.6]} 7... d6 {[%clk 0:02:53.4]} 8. d4 {[%clk 0:02:54]} 8...
cxd4 {[%clk 0:02:49.4]} 9. Nxd4 {[%clk 0:02:53.7]} 9... Bd7 {[%clk 0:02:47.4]}
10. e3 {[%clk 0:02:52]} 10... a6 {[%clk 0:02:43.1]} 11. Nc3 {[%clk 0:02:51.2]}
11... Qa5 {[%clk 0:02:38]} 12. Qe2 {[%clk 0:02:46.9]} 12... Rfc8 {[%clk
0:02:36.3]} 13. Rac1 {[%clk 0:02:43.7]} 13... Rab8 {[%clk 0:02:36.3]} 14. Rfd1
{[%clk 0:02:31.9]} 14... Bg4 {[%clk 0:02:28.9]} 15. f3 {[%clk 0:02:25.9]} 15...
Bd7 {[%clk 0:02:29.2]} 16. a3 {[%clk 0:01:55.9]} 16... Qh5 {[%clk 0:02:09.8]}
17. g4 {[%clk 0:01:28.6]} 17... Qh4 {[%clk 0:02:08.7]} 18. Qf2 {[%clk
0:01:25.4]} 18... Qxf2+ {[%clk 0:02:02.2]} 19. Kxf2 {[%clk 0:01:25.4]} 19...
Nxd4 {[%clk 0:01:56.9]} 20. exd4 {[%clk 0:01:21.8]} 20... b5 {[%clk 0:01:56.9]}
21. g5 {[%clk 0:01:15]} 21... Nh5 {[%clk 0:01:56.3]} 22. Nd5 {[%clk 0:01:13.5]}
22... Kf8 {[%clk 0:01:56]} 23. Bf1 {[%clk 0:00:55.6]} 23... e6 {[%clk 0:01:50]}
24. Nb4 {[%clk 0:00:53.1]} 24... a5 {[%clk 0:01:44.5]} 25. Na6 {[%clk
0:00:52.6]} 25... Rb6 {[%clk 0:01:26.7]} 26. cxb5 {[%clk 0:00:49.2]} 26... Rxc1
{[%clk 0:01:27]} 27. Rxc1 {[%clk 0:00:46.6]} 27... Bxb5 {[%clk 0:01:27.2]} 28.
Bxb5 {[%clk 0:00:41.4]} 28... Rxb5 {[%clk 0:01:28.1]} 29. b4 {[%clk 0:00:37.6]}
29... axb4 {[%clk 0:01:26.2]} 30. Nxb4 {[%clk 0:00:35.9]} 30... Nf4 {[%clk
0:01:22.5]} 31. Rc8+ {[%clk 0:00:32.4]} 31... Ke7 {[%clk 0:01:22.3]} 32. Rc7+
{[%clk 0:00:30.4]} 32... Ke8 {[%clk 0:01:22.1]} 33. Rc8+ {[%clk 0:00:28.5]}
33... Ke7 {[%clk 0:01:11.7]} 34. Rc7+ {[%clk 0:00:28.3]} 34... Ke8 {[%clk
0:01:02.9]} 35. Rc8+ {[%clk 0:00:28.4]} 35... Kd7 {[%clk 0:00:51.3]} 36. Rg8
{[%clk 0:00:27.7]} 36... Rxg5 {[%clk 0:00:47.6]} 37. Rxg7 {[%clk 0:00:23.6]}
37... Rg2+ {[%clk 0:00:47.5]} 38. Ke3 {[%clk 0:00:17.5]} 38... g5 {[%clk
0:00:35.8]} 39. Rxg5 {[%clk 0:00:14.6]} 39... Rxg5 {[%clk 0:00:32.1]} 40. Kxf4
{[%clk 0:00:14.7]} 40... Rg2 {[%clk 0:00:31.8]} 41. Bc3 {[%clk 0:00:12.7]} 41...
Rxh2 {[%clk 0:00:31.7]} 42. a4 {[%clk 0:00:12.5]} 42... Rg2 {[%clk 0:00:24.4]}
43. a5 {[%clk 0:00:11.8]} 43... Kc7 {[%clk 0:00:24.6]} 44. Be1 {[%clk
0:00:10.4]} 44... h5 {[%clk 0:00:23.1]} 45. Bh4 {[%clk 0:00:09.1]} 45... Rb2
{[%clk 0:00:21.4]} 46. Nd3 {[%clk 0:00:08.8]} 46... Ra2 {[%clk 0:00:21.3]} 47.
Ke3 {[%clk 0:00:07.4]} 47... Rxa5 {[%clk 0:00:21]} 48. Nf4 {[%clk 0:00:07.5]}
48... Kd7 {[%clk 0:00:20.4]} 49. Bf6 {[%clk 0:00:06.9]} 49... Rf5 {[%clk
0:00:19.3]} 50. Bh4 {[%clk 0:00:06.8]} 50... Ra5 {[%clk 0:00:18.1]} 51. Kf2
{[%clk 0:00:06.3]} 51... Kc6 {[%clk 0:00:17.8]} 52. Ke3 {[%clk 0:00:06.4]} 52...
Ra3+ {[%clk 0:00:17.2]} 53. Kf2 {[%clk 0:00:06]} 53... Ra2+ {[%clk 0:00:17.5]}
54. Ke3 {[%clk 0:00:05.1]} 54... Rh2 {[%clk 0:00:17.4]} 55. Bg3 {[%clk
0:00:05.2]} 55... Rh1 {[%clk 0:00:17.7]} 56. Kf2 {[%clk 0:00:04.7]} 56... h4
{[%clk 0:00:17.5]} 57. Kg2 {[%clk 0:00:04.9]} 57... Rd1 {[%clk 0:00:17.5]} 58.
Bf2 {[%clk 0:00:05.1]} 58... f5 {[%clk 0:00:15.6]} 59. Ng6 {[%clk 0:00:03.1]}
59... Kd5 {[%clk 0:00:14.8]} 60. Nxh4 {[%clk 0:00:03]} 60... Ra1 {[%clk
0:00:12.3]} 61. Ng6 {[%clk 0:00:03.1]} 61... Kc6 {[%clk 0:00:12.6]} 62. Nf4
{[%clk 0:00:02.8]} 62... Kd7 {[%clk 0:00:12.9]} 63. Kg3 {[%clk 0:00:02.3]} 63...
Ra8 {[%clk 0:00:13.2]} 64. Kg2 {[%clk 0:00:01.8]} 64... Rg8+ {[%clk 0:00:13.5]}
65. Kf1 {[%clk 0:00:01.9]} 65... e5 {[%clk 0:00:13.8]} 66. dxe5 {[%clk
0:00:01.6]} 66... dxe5 {[%clk 0:00:14.7]} 67. Nd3 {[%clk 0:00:02.1]} 67... Ke6
{[%clk 0:00:15.1]} 68. Ke2 {[%clk 0:00:02.1]} 68... Kd5 {[%clk 0:00:15.4]} 69.
Nc5 {[%clk 0:00:02.6]} 69... Rb8 {[%clk 0:00:15.4]} 70. Nd3 {[%clk 0:00:02.8]}
70... Rb3 {[%clk 0:00:15.1]} 71. Bg3 {[%clk 0:00:02.9]} 71... f4 {[%clk
0:00:14]} 72. Bh4 {[%clk 0:00:03.2]} 72... Ra3 {[%clk 0:00:14]} 73. Bf6 {[%clk
0:00:03.1]} 73... Ra2+ {[%clk 0:00:13.4]} 74. Kf1 {[%clk 0:00:03.3]} 74... Kd4
{[%clk 0:00:13.6]} 75. Nxe5 {[%clk 0:00:02.6]} 75... Ke3 {[%clk 0:00:13.8]} 76.
Kg1 {[%clk 0:00:02.5]} 76... Ra6 {[%clk 0:00:13.1]} 77. Bg5 {[%clk 0:00:02]}
77... Re6 {[%clk 0:00:12.3]} 78. Ng4+ {[%clk 0:00:01.2]} 78... Kxf3 {[%clk
0:00:12.4]} 79. Nh2+ {[%clk 0:00:01.4]} 79... Kg3 {[%clk 0:00:11.1]} 80. Nf1+
{[%clk 0:00:01.4]} 80... Kg4 {[%clk 0:00:11.4]} 81. Bd8 {[%clk 0:00:01.4]} 81...
Re2 {[%clk 0:00:11.7]} 82. Bc7 {[%clk 0:00:01.1]} 82... f3 {[%clk 0:00:11.7]}
83. Nh2+ {[%clk 0:00:01.3]} 83... Kf5 {[%clk 0:00:11.3]} 84. Nxf3 {[%clk
0:00:01.4]} 84... Ra2 {[%clk 0:00:11.8]} 0-1

[Event "*** Titled Tuesday Blitz"]
[Site "Chess.com"]
[Date "2020.05.26"]
[Round "6"]
[White "GukeshDommaraju"]
[Black "LuckSlayeer"]
[Result "1/2-1/2"]
[WhiteElo "2668"]
[BlackElo "2473"]
[TimeControl "180+1"]
[EndTime "11:10:07 PDT"]
[Termination "Game drawn by repetition"]

1. e4 {[%clk 0:03:00.9]} 1... c5 {[%clk 0:02:59.9]} 2. Nf3 {[%clk 0:03:00.7]}
2... Nc6 {[%clk 0:03:00.3]} 3. Bb5 {[%clk 0:03:00.2]} 3... g6 {[%clk 0:03:00.1]}
4. O-O {[%clk 0:02:57.9]} 4... Bg7 {[%clk 0:03:00.5]} 5. c3 {[%clk 0:02:57.4]}
5... a6 {[%clk 0:02:59.7]} 6. Ba4 {[%clk 0:02:47]} 6... b5 {[%clk 0:02:48.8]} 7.
Bc2 {[%clk 0:02:44.9]} 7... d6 {[%clk 0:02:46]} 8. d4 {[%clk 0:02:43.5]} 8...
cxd4 {[%clk 0:02:38.9]} 9. cxd4 {[%clk 0:02:42.7]} 9... Bg4 {[%clk 0:02:34.1]}
10. Be3 {[%clk 0:02:36.2]} 10... Bxf3 {[%clk 0:02:30.4]} 11. gxf3 {[%clk
0:02:35.7]} 11... d5 {[%clk 0:01:58.5]} 12. Nc3 {[%clk 0:02:19.5]} 12... e6
{[%clk 0:01:47.2]} 13. e5 {[%clk 0:01:25.1]} 13... Nge7 {[%clk 0:01:45.1]} 14.
f4 {[%clk 0:01:24.4]} 14... O-O {[%clk 0:01:44.2]} 15. Ne2 {[%clk 0:01:19.3]}
15... f6 {[%clk 0:01:14.8]} 16. Rc1 {[%clk 0:01:18.4]} 16... Rc8 {[%clk
0:01:14]} 17. Bb1 {[%clk 0:01:13.4]} 17... Nf5 {[%clk 0:01:08.4]} 18. Bxf5
{[%clk 0:01:12.2]} 18... gxf5 {[%clk 0:01:02.3]} 19. Kh1 {[%clk 0:01:03.1]}
19... fxe5 {[%clk 0:01:02.2]} 20. fxe5 {[%clk 0:00:51.7]} 20... Qh4 {[%clk
0:01:01.4]} 21. Nf4 {[%clk 0:00:47.4]} 21... Bh6 {[%clk 0:00:36.5]} 22. Ng2
{[%clk 0:00:25.7]} 22... Qh3 {[%clk 0:00:33.3]} 23. Rc3 {[%clk 0:00:25.2]} 23...
Bxe3 {[%clk 0:00:24.2]} 24. Rxe3 {[%clk 0:00:25.1]} 24... Qh6 {[%clk 0:00:22.1]}
25. Rg1 {[%clk 0:00:17]} 25... Kf7 {[%clk 0:00:17.7]} 26. Qd3 {[%clk 0:00:16.1]}
26... Rg8 {[%clk 0:00:15.8]} 27. Rh3 {[%clk 0:00:15.5]} 27... Qg6 {[%clk
0:00:14.9]} 28. Rg3 {[%clk 0:00:14.7]} 28... Qh6 {[%clk 0:00:13.8]} 29. Ne1
{[%clk 0:00:11]} 29... Rxg3 {[%clk 0:00:11]} 30. Rxg3 {[%clk 0:00:11]} 30... Qc1
{[%clk 0:00:08.5]} 31. Rg1 {[%clk 0:00:10.5]} 31... Rg8 {[%clk 0:00:08.1]} 32.
Rxg8 {[%clk 0:00:06.5]} 32... Kxg8 {[%clk 0:00:09]} 33. Qg3+ {[%clk 0:00:05.3]}
33... Kf7 {[%clk 0:00:08.8]} 34. Qe3 {[%clk 0:00:04.8]} 34... Qxe3 {[%clk
0:00:06.2]} 35. fxe3 {[%clk 0:00:04.9]} 35... Nb4 {[%clk 0:00:06.1]} 36. a3
{[%clk 0:00:04.5]} 36... Nc6 {[%clk 0:00:05.6]} 37. Nd3 {[%clk 0:00:04.8]} 37...
Ke7 {[%clk 0:00:04.8]} 38. Kg2 {[%clk 0:00:05.1]} 38... a5 {[%clk 0:00:05.1]}
39. Kf3 {[%clk 0:00:05.4]} 39... b4 {[%clk 0:00:04.1]} 40. a4 {[%clk 0:00:04.9]}
40... Nd8 {[%clk 0:00:02.6]} 41. Kf4 {[%clk 0:00:05.1]} 41... Kf7 {[%clk
0:00:02.7]} 42. Nc5 {[%clk 0:00:05.3]} 42... Ke7 {[%clk 0:00:02.5]} 43. b3
{[%clk 0:00:05.6]} 43... Kf7 {[%clk 0:00:02.6]} 44. Kg5 {[%clk 0:00:06.1]} 44...
Kg7 {[%clk 0:00:02.3]} 45. h3 {[%clk 0:00:06.3]} 45... Kf7 {[%clk 0:00:02.7]}
46. Kh6 {[%clk 0:00:06.3]} 46... Kg8 {[%clk 0:00:03.1]} 47. Nd7 {[%clk
0:00:06.3]} 47... Nf7+ {[%clk 0:00:03.3]} 48. Kh5 {[%clk 0:00:06.7]} 48... Nd8
{[%clk 0:00:03.9]} 49. Nf6+ {[%clk 0:00:06.8]} 49... Kg7 {[%clk 0:00:04.5]} 50.
Ne8+ {[%clk 0:00:06.3]} 50... Kf7 {[%clk 0:00:05.1]} 51. Nd6+ {[%clk 0:00:06.4]}
51... Kg7 {[%clk 0:00:05.7]} 52. Kg5 {[%clk 0:00:06.7]} 52... h6+ {[%clk
0:00:05]} 53. Kh5 {[%clk 0:00:06.8]} 53... Kh7 {[%clk 0:00:05.5]} 54. Ne8 {[%clk
0:00:07.2]} 54... Nb7 {[%clk 0:00:04.1]} 55. Nf6+ {[%clk 0:00:05.6]} 55... Kg7
{[%clk 0:00:04.6]} 56. Ne8+ {[%clk 0:00:05.2]} 56... Kh7 {[%clk 0:00:04.6]} 57.
Nd6 {[%clk 0:00:05.4]} 57... Nd8 {[%clk 0:00:03.9]} 58. Kh4 {[%clk 0:00:05.3]}
58... Kg6 {[%clk 0:00:04]} 59. Nc8 {[%clk 0:00:03.9]} 59... Kh7 {[%clk
0:00:02.4]} 60. Ne7 {[%clk 0:00:04]} 60... Kg7 {[%clk 0:00:02.1]} 61. Kh5 {[%clk
0:00:04.1]} 61... Kh7 {[%clk 0:00:02.6]} 62. Ng6 {[%clk 0:00:04.4]} 62... Kg7
{[%clk 0:00:03.1]} 63. Nf4 {[%clk 0:00:04.8]} 63... Kh7 {[%clk 0:00:02]} 64. Kh4
{[%clk 0:00:05.1]} 64... Kg7 {[%clk 0:00:02.2]} 65. Kg3 {[%clk 0:00:05.5]} 65...
Kf7 {[%clk 0:00:01.9]} 66. Kf2 {[%clk 0:00:04.2]} 66... Kg7 {[%clk 0:00:02.2]}
67. Kg3 {[%clk 0:00:03.9]} 67... Kf7 {[%clk 0:00:02.9]} 68. Kh4 {[%clk
0:00:04.3]} 68... Kg7 {[%clk 0:00:03.5]} 69. Kh5 {[%clk 0:00:04.8]} 69... Kh7
{[%clk 0:00:03.8]} 70. Nd3 {[%clk 0:00:03.6]} 70... Kg7 {[%clk 0:00:03.8]} 71.
Nc5 {[%clk 0:00:03.9]} 71... Kh7 {[%clk 0:00:03.8]} 72. Nd7 {[%clk 0:00:03.5]}
72... Kg7 {[%clk 0:00:04.3]} 73. Nb8 {[%clk 0:00:02.9]} 73... Kh7 {[%clk
0:00:04.4]} 74. Na6 {[%clk 0:00:03]} 74... Kg7 {[%clk 0:00:04.6]} 75. Nc7 {[%clk
0:00:03.5]} 75... Kh7 {[%clk 0:00:05.1]} 76. Ne8 {[%clk 0:00:04.1]} 76... Nf7
{[%clk 0:00:03.5]} 77. Nf6+ {[%clk 0:00:03.2]} 77... Kg7 {[%clk 0:00:03.5]} 78.
Ne8+ {[%clk 0:00:03.4]} 78... Kh7 {[%clk 0:00:04]} 79. Kh4 {[%clk 0:00:02.3]}
79... Kg6 {[%clk 0:00:03.8]} 80. Nf6 {[%clk 0:00:03.2]} 80... Nd8 {[%clk
0:00:03.7]} 81. Nd7 {[%clk 0:00:03.4]} 81... Kh7 {[%clk 0:00:03.5]} 82. Kh5
{[%clk 0:00:03.2]} 82... Kg7 {[%clk 0:00:03.9]} 83. Nf6 {[%clk 0:00:02.9]} 83...
Nf7 {[%clk 0:00:03.7]} 84. Ne8+ {[%clk 0:00:03]} 84... Kh7 {[%clk 0:00:04.2]}
1/2-1/2

[Event "*** Titled Tuesday Blitz"]
[Site "Chess.com"]
[Date "2020.05.26"]
[Round "6"]
[White "Paralinch"]
[Black "DanielDardha2005"]
[Result "1-0"]
[WhiteElo "2876"]
[BlackElo "2653"]
[TimeControl "180+1"]
[EndTime "11:10:32 PDT"]
[Termination "Paralinch won by checkmate"]

1. e4 {[%clk 0:03:00.9]} 1... c5 {[%clk 0:02:59.5]} 2. Nf3 {[%clk 0:03:01]} 2...
Nc6 {[%clk 0:02:59.7]} 3. d4 {[%clk 0:03:01.4]} 3... cxd4 {[%clk 0:03:00.6]} 4.
Nxd4 {[%clk 0:03:02.3]} 4... e5 {[%clk 0:03:00.6]} 5. Nb5 {[%clk 0:03:02.2]}
5... Nf6 {[%clk 0:03:01.2]} 6. N1c3 {[%clk 0:03:01]} 6... d6 {[%clk 0:03:01.3]}
7. Bg5 {[%clk 0:02:59.1]} 7... a6 {[%clk 0:03:01.2]} 8. Na3 {[%clk 0:02:59.8]}
8... b5 {[%clk 0:03:01.1]} 9. Nd5 {[%clk 0:03:00.5]} 9... Be7 {[%clk 0:03:01.1]}
10. Bxf6 {[%clk 0:03:01.1]} 10... Bxf6 {[%clk 0:03:02]} 11. c4 {[%clk
0:03:01.8]} 11... b4 {[%clk 0:03:01.8]} 12. Nc2 {[%clk 0:03:02.5]} 12... Bg5
{[%clk 0:03:02.4]} 13. h4 {[%clk 0:02:51.9]} 13... Bh6 {[%clk 0:03:01.8]} 14.
Ndxb4 {[%clk 0:02:46.6]} 14... Nxb4 {[%clk 0:02:59.9]} 15. Nxb4 {[%clk
0:02:46.6]} 15... Qb6 {[%clk 0:02:55]} 16. Nd3 {[%clk 0:02:37.4]} 16... O-O
{[%clk 0:02:52.6]} 17. Be2 {[%clk 0:02:37.1]} 17... f5 {[%clk 0:02:47.3]} 18.
Bf3 {[%clk 0:02:32.3]} 18... Bb7 {[%clk 0:02:25.3]} 19. c5 {[%clk 0:02:25.7]}
19... dxc5 {[%clk 0:02:17.9]} 20. Nxe5 {[%clk 0:02:25.2]} 20... fxe4 {[%clk
0:02:07.8]} 21. Be2 {[%clk 0:02:19.2]} 21... Qb4+ {[%clk 0:01:37.3]} 22. Kf1
{[%clk 0:02:19.2]} 22... Qxb2 {[%clk 0:01:17.1]} 23. Qb3+ {[%clk 0:02:09.1]}
23... Qxb3 {[%clk 0:01:16.3]} 24. axb3 {[%clk 0:02:10]} 24... g6 {[%clk
0:01:03.6]} 25. Rd1 {[%clk 0:02:01.5]} 25... Be3 {[%clk 0:00:58.9]} 26. Bc4+
{[%clk 0:01:54.7]} 26... Kh8 {[%clk 0:00:54.3]} 27. Nf7+ {[%clk 0:01:54.6]}
27... Rxf7 {[%clk 0:00:54.4]} 28. Bxf7 {[%clk 0:01:54.2]} 28... Bd4 {[%clk
0:00:55]} 29. h5 {[%clk 0:01:45.7]} 29... g5 {[%clk 0:00:49.2]} 30. Bc4 {[%clk
0:01:16.4]} 30... Rf8 {[%clk 0:00:48.5]} 31. Rxd4 {[%clk 0:01:16.9]} 31... cxd4
{[%clk 0:00:48.4]} 32. Ke2 {[%clk 0:01:17.8]} 32... Kg7 {[%clk 0:00:44.6]} 33.
Ra1 {[%clk 0:01:11.5]} 33... Kh6 {[%clk 0:00:36.9]} 34. Ra5 {[%clk 0:00:39.6]}
34... Rf6 {[%clk 0:00:35.4]} 35. Re5 {[%clk 0:00:34.2]} 35... Kxh5 {[%clk
0:00:31.4]} 36. Re7 {[%clk 0:00:34.2]} 36... Bc6 {[%clk 0:00:22.2]} 37. Rxh7+
{[%clk 0:00:34.1]} 37... Kg6 {[%clk 0:00:22]} 38. Re7 {[%clk 0:00:31.2]} 38...
Rd6 {[%clk 0:00:19.5]} 39. Re5 {[%clk 0:00:25.9]} 39... Kf6 {[%clk 0:00:18.5]}
40. Ra5 {[%clk 0:00:26]} 40... Bb7 {[%clk 0:00:18.7]} 41. Kd2 {[%clk 0:00:25]}
41... g4 {[%clk 0:00:14.9]} 42. g3 {[%clk 0:00:25.4]} 42... Kg6 {[%clk
0:00:13.9]} 43. Ke2 {[%clk 0:00:20.6]} 43... Rf6 {[%clk 0:00:07.2]} 44. Re5
{[%clk 0:00:20.4]} 44... d3+ {[%clk 0:00:06.5]} 45. Ke1 {[%clk 0:00:18.9]} 45...
d2+ {[%clk 0:00:06.9]} 46. Kxd2 {[%clk 0:00:19.2]} 46... Rxf2+ {[%clk
0:00:07.4]} 47. Be2 {[%clk 0:00:16.8]} 47... Bc6 {[%clk 0:00:05.7]} 48. Ke3
{[%clk 0:00:17.1]} 48... Rf6 {[%clk 0:00:04.8]} 49. Bxg4 {[%clk 0:00:17]} 49...
Rd6 {[%clk 0:00:04.5]} 50. Be2 {[%clk 0:00:17]} 50... Bb7 {[%clk 0:00:02.1]} 51.
g4 {[%clk 0:00:13.7]} 51... Rb6 {[%clk 0:00:02.2]} 52. Bc4 {[%clk 0:00:14]}
52... Bc6 {[%clk 0:00:02.4]} 53. Re6+ {[%clk 0:00:12.8]} 53... Kg5 {[%clk
0:00:02.8]} 54. Bd5 {[%clk 0:00:09.7]} 54... Rb5 {[%clk 0:00:03.2]} 55. Bxc6
{[%clk 0:00:05.7]} 55... Rxb3+ {[%clk 0:00:03.3]} 56. Kxe4 {[%clk 0:00:05.1]}
56... Kxg4 {[%clk 0:00:04.2]} 57. Ke5 {[%clk 0:00:05.5]} 57... Rg3 {[%clk
0:00:02.5]} 58. Be4 {[%clk 0:00:04.8]} 58... Kg5 {[%clk 0:00:02.8]} 59. Rg6+
{[%clk 0:00:04.7]} 59... Kh4 {[%clk 0:00:02.8]} 60. Rxa6 {[%clk 0:00:05.6]}
60... Kg5 {[%clk 0:00:02.3]} 61. Ra1 {[%clk 0:00:04.3]} 61... Kg4 {[%clk
0:00:02.3]} 62. Rf1 {[%clk 0:00:04.4]} 62... Kg5 {[%clk 0:00:02.6]} 63. Rf8
{[%clk 0:00:04]} 63... Kg4 {[%clk 0:00:03]} 64. Bf5+ {[%clk 0:00:04.5]} 64...
Kg5 {[%clk 0:00:03.3]} 65. Rf7 {[%clk 0:00:05]} 65... Kh4 {[%clk 0:00:03.2]} 66.
Kf6 {[%clk 0:00:04.6]} 66... Rg2 {[%clk 0:00:01.6]} 67. Re7 {[%clk 0:00:04.1]}
67... Kg3 {[%clk 0:00:02]} 68. Kg5 {[%clk 0:00:04.6]} 68... Kf2+ {[%clk
0:00:02.2]} 69. Kf4 {[%clk 0:00:04.6]} 69... Rh2 {[%clk 0:00:03.1]} 70. Bg4
{[%clk 0:00:05]} 70... Kg2 {[%clk 0:00:03.4]} 71. Re2+ {[%clk 0:00:05]} 71...
Kg1 {[%clk 0:00:03.9]} 72. Re3 {[%clk 0:00:05.5]} 72... Kf2 {[%clk 0:00:04.2]}
73. Rb3 {[%clk 0:00:04.8]} 73... Rg2 {[%clk 0:00:03.9]} 74. Bf3 {[%clk 0:00:05]}
74... Rh2 {[%clk 0:00:04.3]} 75. Ra3 {[%clk 0:00:05.5]} 75... Rh4+ {[%clk
0:00:03.9]} 76. Bg4 {[%clk 0:00:05.9]} 76... Rh2 {[%clk 0:00:04.8]} 77. Rb3
{[%clk 0:00:05.5]} 77... Rg2 {[%clk 0:00:04.6]} 78. Bh3 {[%clk 0:00:05.8]} 78...
Rh2 {[%clk 0:00:04.7]} 79. Ra3 {[%clk 0:00:06.2]} 79... Kg1 {[%clk 0:00:05]} 80.
Kg3 {[%clk 0:00:06.7]} 80... Rg2+ {[%clk 0:00:04.9]} 81. Kh4 {[%clk 0:00:07.2]}
81... Rh2 {[%clk 0:00:05.2]} 82. Kg4 {[%clk 0:00:07.6]} 82... Rf2 {[%clk
0:00:04.9]} 83. Ra1+ {[%clk 0:00:06.4]} 83... Kh2 {[%clk 0:00:05.1]} 84. Kh4
{[%clk 0:00:06.9]} 84... Rf4+ {[%clk 0:00:05.1]} 85. Bg4 {[%clk 0:00:07.4]}
85... Rf2 {[%clk 0:00:06]} 86. Ra3 {[%clk 0:00:07.7]} 86... Kg2 {[%clk
0:00:06.4]} 87. Bh3+ {[%clk 0:00:07.9]} 87... Kh2 {[%clk 0:00:06.4]} 88. Kg4
{[%clk 0:00:07.9]} 88... Rd2 {[%clk 0:00:05.6]} 89. Kh4 {[%clk 0:00:08]} 89...
Rd4+ {[%clk 0:00:05.7]} 90. Bg4 {[%clk 0:00:08.4]} 90... Rd2 {[%clk 0:00:06.6]}
91. Bf3 {[%clk 0:00:08.7]} 91... Rd4+ {[%clk 0:00:06.3]} 92. Kg5 {[%clk
0:00:09.2]} 92... Kg3 {[%clk 0:00:05.5]} 93. Be4+ {[%clk 0:00:09.5]} 93... Kf2
{[%clk 0:00:05.9]} 94. Kf4 {[%clk 0:00:10]} 94... Rd2 {[%clk 0:00:06.2]} 95. Rh3
{[%clk 0:00:10]} 95... Re2 {[%clk 0:00:06.5]} 96. Bd3 {[%clk 0:00:10.2]} 96...
Rd2 {[%clk 0:00:06.4]} 97. Ke4 {[%clk 0:00:10.6]} 97... Ke1 {[%clk 0:00:05.8]}
98. Rf3 {[%clk 0:00:10.9]} 98... Rf2 {[%clk 0:00:05.7]} 99. Re3+ {[%clk
0:00:11.3]} 99... Kd2 {[%clk 0:00:06.1]} 100. Rh3 {[%clk 0:00:11.5]} 100... Rg2
{[%clk 0:00:05.5]} 101. Kd4 {[%clk 0:00:11.5]} 101... Rg4+ {[%clk 0:00:05.4]}
102. Be4 {[%clk 0:00:11.8]} 102... Rf4 {[%clk 0:00:04.4]} 103. Rh2+ {[%clk
0:00:12]} 103... Ke1 {[%clk 0:00:03.3]} 104. Ke3 {[%clk 0:00:12]} 104... Rf1
{[%clk 0:00:03.1]} 105. Ra2 {[%clk 0:00:12.1]} 105... Rf2 {[%clk 0:00:01.3]}
106. Ra1# {[%clk 0:00:11.9]} 1-0